Workbook

Sheet Доходы 08 г.
A1: Доходы бюджета адм.МО " сельсовет Хунинский " на 2020г.
B2: с изменениями от 01.03.2020г.
A3: № п/п | B3: доходы | C3: 2020 | D3: 1-кв | E3: 2 кв | F3: 3 кв | G3: 4 кв
B4: Численность населения | C4: 532
A5: 1 | B5: Земельный налог | C5: 278 | E5: 50 | F5: 108 | G5: 120
A6: 2 | B6: Налог на имущество | C6: 29 | E6: 9 | F6: 10 | G6: 10
A7: 3 | B7: Подоходный налог | C7: 10 | D7: 2 | E7: 2 | F7: 3 | G7: 3
A8: 4 | B8: ЕСХН | C8: 2 | F8: 2
A9: 5 | B9: Неналоговые доходы | C9: 14 | E9: 2 | F9: 2 | G9: 10
A10: 6 | B10: Дотация /субвенция/ | C10: 1924 | D10: 481 | E10: 481 | F10: 481 | G10: 481
A11: 4 | B11: РФФП | E11: 0
A12: 6 | B12: ВУС | C12: 89 | D12: 22.2 | E12: 22.2 | F12: 22.3 | G12: 22.3
A13: 7 | B13: РФФП передан.полном.ЖКХ | C13: 80 | F13: 80
A14: 8
A15: 9
B16: ВСЕГО ДОХОДЫ: | C16: 2426 | D16: 505.2 | E16: 566.2 | F16: 708.3 | G16: 646.3
B17: Глава м/о "сельсовет Хунинский": А.К.Цахаев
B19: Бухгалтер: Канкаева

Sheet Расходы 08 г.
F1: Расходы
A3: Глава | B3: Раздель | C3: Подразделение | D3: Цель статьи | E3: Вид рсхода | F3: Наименование статьи | G3: Статья | H3: Сумма2011г. | I3: 1 кв | J3: 2 кв | K3: 3 кв | L3: 4 кв
A5: 001 Аппарат упр. | B5: 1 | C5: 104 | D5: 20400 | E5: 500 | F5: Оплата труда | G5: 211 | H5: 423000 | I5: 105750 | J5: 105750 | K5: 105750 | L5: 105750
F6: Начисление на ФОТ | G6: 213 | H6: 144700 | I6: 36175 | J6: 36175 | K6: 36175 | L6: 36175
F7: Прочие выплаты | G7: 212
F8: Услуги связи | G8: 221 | L8: ,
F9: Транспортные услуги | G9: 222
F10: Коммунальные услуги | G10: 223 | H10: 15000 | I10: 5000 | J10: 5000 | L10: 5000
F11: Услуги по содер. имущ. | G11: 225
F12: Прочие услуги | G12: 226 | H12: 40000 | I12: 10000 | J12: 10000 | K12: 10000 | L12: 10000
G13: 290
F14: Прочие расходы | H14: 5600 | I14: 5600
F15: Увелич. стоимости основных средств | G15: 310 | H15: 23500 | I15: 23500
F16: Увелич. стоимости материальных запасов | G16: 340 | H16: 2000 | I16: 2000
A17: Итого: | H17: =H5+H6+H7+H8+H9+H10+H11+H12+H13+H14+H15+H16 -> 653800 | I17: =I5+I6+I7+I8+I9+I10+I11+I12+I13+I14+I15+I16 -> 188025 | J17: 156925 | K17: 151925 | L17: 156925
A18: 001 Культура сдк | B18: 8 | C18: 801 | D18: 4409900 | E18: 1 | F18: Оплата труда | G18: 211 | H18: 320900 | I18: =H18/4 -> 80225 | J18: =H18/4 -> 80225 | K18: =H18/4 -> 80225 | L18: =H18/4 -> 80225
F19: Начисление на ФОТ | G19: 213 | H19: 109800 | I19: 27450 | J19: 27450 | K19: 27450 | L19: 27450
F20: Прочие услуги | G20: 226 | H20: 60000 | K20: 30000 | L20: 30000
F21: Коммунальные услуги | G21: 340 | I21: 0 | J21: 0 | K21: 0 | L21: 0
A22: 001Библиотека | B22: 8 | C22: 801 | D22: 4429900 | E22: 1 | F22: Оплата труда | G22: 211 | H22: 101500 | I22: 25375 | J22: 25375 | K22: 25375 | L22: 25375
F23: Начисление на ФОТ | G23: 213 | H23: 34700 | I23: 8675 | J23: 8675 | K23: 8675 | L23: 8675
G24: 225
F25: Коммунальные услуги | G25: 340
A26: Итого: | H26: =H18+H19+H20+H21+H22+H23+H25 -> 626900 | I26: =SUM(I18:I25) -> 141725 | J26: =SUM(J18:J25) -> 141725 | K26: =SUM(K18:K25) -> 171725 | L26: =SUM(L18:L25) -> 171725
A27: 001 ЖКХ | B27: 5 | C27: 503 | D27: 6000100 | E27: 500 | F27: Коммунальные услуги | G27: 223 | H27: 28700 | I27: 17800 | J27: 10900
A28: 001 ЖКХ | B28: 5 | C28: 502 | D28: 3510500 | E28: 500 | F28: Прочие услуги | G28: 226 | H28: 117700 | I28: 93000 | J28: 24700
B29: 5 | C29: 502 | D29: 3510500 | E29: 500 | F29: Увелич. стоимости материальных запасов | G29: 340 | H29: 117000 | I29: 117000
A30: Итого: | H30: =H27+H28+H29 -> 263400 | I30: =I27+I28+I29 -> 227800 | J30: 35600 | K30: 0 | L30: 0
A31: 001 Спорт | B31: 9 | C31: 908 | D31: 5129700 | E31: 12 | F31: Прочие расходы | G31: 290 | I31: =H31/4 -> 0 | J31: =H31/4 -> 0 | K31: =H31/4 -> 0 | L31: =H31/4 -> 0
A32: Итого: | H32: =H31 -> 0 | I32: =I31 -> 0 | J32: =J31 -> 0 | K32: =K31 -> 0 | L32: =L31 -> 0
A33: 001 ЦБ | B33: 8 | C33: 804 | D33: 4529900 | E33: 1 | F33: Оплата труда | G33: 211 | H33: 204200 | I33: 51050 | J33: 51050 | K33: 51050 | L33: 51050
F34: Начисление на ФОТ | G34: 213 | H34: 70200 | I34: =H34/4 -> 17550 | J34: =H34/4 -> 17550 | K34: =H34/4 -> 17550 | L34: =H34/4 -> 17550
F35: Прочие выплаты | G35: 212 | H35: 5000 | I35: =H35/4 -> 1250 | J35: =H35/4 -> 1250 | K35: =H35/4 -> 1250 | L35: =H35/4 -> 1250
F36: Оплата услуг связи | G36: 222 | I36: =H36/4 -> 0 | J36: =H36/4 -> 0 | K36: =H36/4 -> 0 | L36: =H36/4 -> 0
F37: Прочие услуги | G37: 226 | I37: =H37/4 -> 0 | J37: =H37/4 -> 0 | K37: =H37/4 -> 0 | L37: =H37/4 -> 0
F38: Увелич. стоимости материальных запасов | G38: 340 | H38: 5000 | I38: =H38/4 -> 1250 | J38: =H38/4 -> 1250 | K38: =H38/4 -> 1250 | L38: =H38/4 -> 1250
A39: Итого: | H39: =H33+H34+H35+H36+H37+H38 -> 284400 | I39: =SUM(I33:I38) -> 71100 | J39: =SUM(J33:J38) -> 71100 | K39: =SUM(K33:K38) -> 71100 | L39: =SUM(L33:L38) -> 71100
A40: 001 Загс | B40: 1 | C40: 114 | D40: 13800 | E40: 500 | F40: Прочие расходы | G40: 310 | H40: 5000 | I40: 5000
A41: Итого: | H41: =H40 -> 5000 | I41: =SUM(I40) -> 5000 | J41: =SUM(J40) -> 0 | K41: =SUM(K40) -> 0 | L41: =SUM(L40) -> 0
A42: ВУС | C42: 203 | D42: 13600 | E42: 500 | F42: Оплата труда | G42: 211 | H42: 28316 | I42: =H42/4 -> 7079 | J42: =H42/4 -> 7079 | K42: =H42/4 -> 7079 | L42: =H42/4 -> 7079
C43: 203 | D43: 13600 | E43: 500 | F43: Начисление на ФОТ | G43: 213 | H43: 9684 | I43: =H43/4 -> 2421 | J43: =H43/4 -> 2421 | K43: =H43/4 -> 2421 | L43: =H43/4 -> 2421
C44: 203 | D44: 13600 | E44: 500 | F44: Увелич. стоимости материальных запасов | G44: 340 | H44: 2000 | I44: 500 | J44: 500 | K44: 500 | L44: 500
A45: Итого: | H45: 40000 | I45: =H45/4 -> 10000 | J45: =H45/4 -> 10000 | K45: =H45/4 -> 10000 | L45: =H45/4 -> 10000
A46: 001Молод.политика | B46: 7 | C46: 707 | D46: 4310100 | E46: 1 | F46: Прочие услуги | G46: 226 | I46: =H46/4 -> 0 | J46: =H46/4 -> 0 | K46: =H46/4 -> 0 | L46: =H46/4 -> 0
A47: Итого: | H47: =H46 -> 0 | I47: =I46 -> 0 | J47: =J46 -> 0 | K47: =H47/4 -> 0 | L47: =H47/4 -> 0
H48: ,
A49: ВСЕГО: | H49: =H17+H26+H30+H32+H39+H41+H45+H47 -> 1873500 | I49: =I17+I26+I30+I32+I39+I41+I45+I47 -> 643650 | J49: =J17+J26+J30+J32+J39+J41+J45+J47 -> 415350 | K49: =K17+K26+K30+K32+K39+K41+K45+K47 -> 404750 | L49: =L17+L26+L30+L32+L39+L41++L45+L47 -> 409750
